[Event "Late-Titled-Tuesday-Blitz-April-30-2024"]
[Site "Chess.com"]
[Date "2024.04.30"]
[Round "3"]
[White "karinachess1"]
[Black "Kombinator01"]
[Result "1-0"]
[WhiteElo "2609"]
[BlackElo "2385"]
[TimeControl "180+1"]
[EndTime "14:30:10 PDT"]
[Termination "karinachess1 won by resignation"]

1. d4 {[%clk 0:03:00.9]} 1... Nf6 {[%clk 0:02:58]} 2. c4 {[%clk 0:03:00.8]} 2...
g6 {[%clk 0:02:56.1]} 3. Nc3 {[%clk 0:03:01]} 3... d6 {[%clk 0:02:56]} 4. Nf3
{[%clk 0:03:00.3]} 4... Bg7 {[%clk 0:02:54.7]} 5. g3 {[%clk 0:03:01.1]} 5... O-O
{[%clk 0:02:54.2]} 6. Bg2 {[%clk 0:03:01.7]} 6... c5 {[%clk 0:02:49.6]} 7. O-O
{[%clk 0:03:01.6]} 7... cxd4 {[%clk 0:02:47.6]} 8. Nxd4 {[%clk 0:03:02.5]} 8...
Nc6 {[%clk 0:02:47.4]} 9. Nc2 {[%clk 0:03:02.9]} 9... Be6 {[%clk 0:02:31.3]} 10.
Ne3 {[%clk 0:03:03]} 10... Qa5 {[%clk 0:02:26]} 11. Ncd5 {[%clk 0:02:58.2]}
11... Bxd5 {[%clk 0:02:23.5]} 12. cxd5 {[%clk 0:02:58.5]} 12... Ne5 {[%clk
0:02:20]} 13. Bd2 {[%clk 0:02:58.8]} 13... Qb6 {[%clk 0:02:17.5]} 14. Bc3 {[%clk
0:02:59.2]} 14... Nfd7 {[%clk 0:02:12.8]} 15. Bd4 {[%clk 0:02:54.5]} 15... Qa5
{[%clk 0:02:08.3]} 16. f4 {[%clk 0:02:50.7]} 16... f5 {[%clk 0:01:30.7]} 17.
fxe5 {[%clk 0:02:46.6]} 17... dxe5 {[%clk 0:01:31.2]} 18. Bc3 {[%clk 0:02:46.2]}
18... Qb6 {[%clk 0:01:31.5]} 19. Qd3 {[%clk 0:02:07.7]} 19... Bh6 {[%clk
0:01:10.1]} 20. Bd2 {[%clk 0:01:48.6]} 20... f4 {[%clk 0:01:06]} 21. gxf4 {[%clk
0:01:48.8]} 21... exf4 {[%clk 0:01:04.5]} 22. Bh3 {[%clk 0:01:49.2]} 22... fxe3
{[%clk 0:01:02]} 23. Be6+ {[%clk 0:01:43.3]} 23... Kg7 {[%clk 0:00:48.2]} 24.
Bc3+ {[%clk 0:01:36.5]} 24... Nf6 {[%clk 0:00:46.7]} 25. Rf3 {[%clk 0:01:32.2]}
25... Rad8 {[%clk 0:00:37.1]} 26. Raf1 {[%clk 0:01:30.8]} 26... Qxe6 {[%clk
0:00:33.9]} 27. dxe6 {[%clk 0:01:29.7]} 27... Rxd3 {[%clk 0:00:34.4]} 28. exd3
{[%clk 0:01:30.6]} 28... Bg5 {[%clk 0:00:25.8]} 29. Bd4 {[%clk 0:01:26.1]} 29...
e2 {[%clk 0:00:21]} 30. Re1 {[%clk 0:01:25.5]} 30... Rd8 {[%clk 0:00:21.6]} 31.
Bxf6+ {[%clk 0:01:16.2]} 31... Bxf6 {[%clk 0:00:22.3]} 32. Rxe2 {[%clk
0:01:16.7]} 32... Rd6 {[%clk 0:00:21]} 33. Kg2 {[%clk 0:01:12]} 33... g5 {[%clk
0:00:21]} 34. h3 {[%clk 0:01:09]} 34... Kg6 {[%clk 0:00:21.3]} 35. b3 {[%clk
0:01:09.3]} 35... h5 {[%clk 0:00:21.6]} 36. Re4 {[%clk 0:01:09.3]} 36... Rc6
{[%clk 0:00:21.1]} 37. Rf2 {[%clk 0:01:04.8]} 37... Rc3 {[%clk 0:00:20]} 38. Rd2
{[%clk 0:01:02.2]} 38... Rc6 {[%clk 0:00:19.3]} 39. d4 {[%clk 0:00:59.6]} 39...
Kf5 {[%clk 0:00:19.4]} 40. Re3 {[%clk 0:00:55.1]} 40... Rd6 {[%clk 0:00:18.7]}
41. d5 {[%clk 0:00:53.7]} 41... g4 {[%clk 0:00:18.3]} 42. Rf2+ {[%clk
0:00:46.3]} 42... Kg6 {[%clk 0:00:18.2]} 43. Rd3 {[%clk 0:00:43]} 43... Kg5
{[%clk 0:00:17.4]} 44. Rc2 {[%clk 0:00:40.9]} 44... Be5 {[%clk 0:00:16.4]} 45.
Rc8 {[%clk 0:00:38.4]} 45... Ra6 {[%clk 0:00:15.4]} 46. a4 {[%clk 0:00:37.8]}
46... Rb6 {[%clk 0:00:15.2]} 47. Rg8+ {[%clk 0:00:35.4]} 47... Kf5 {[%clk
0:00:15.2]} 48. a5 {[%clk 0:00:25.2]} 48... Rb5 {[%clk 0:00:14.3]} 49. d6 {[%clk
0:00:25.7]} 49... gxh3+ {[%clk 0:00:09.5]} 50. Kxh3 {[%clk 0:00:25.8]} 50...
Kxe6 {[%clk 0:00:05.6]} 51. d7 {[%clk 0:00:22.7]} 51... Bc7 {[%clk 0:00:06.2]}
52. d8=Q {[%clk 0:00:20.3]} 52... Bxd8 {[%clk 0:00:06.7]} 53. Rgxd8 {[%clk
0:00:21]} 53... Rxa5 {[%clk 0:00:07.6]} 54. R8d4 {[%clk 0:00:19.9]} 54... Kf5
{[%clk 0:00:06.1]} 55. Rd5+ {[%clk 0:00:19.8]} 55... Rxd5 {[%clk 0:00:05.4]} 56.
Rxd5+ {[%clk 0:00:20.7]} 56... e5 {[%clk 0:00:06.3]} 57. Rd7 {[%clk 0:00:18.3]}
57... e4 {[%clk 0:00:06.8]} 58. Rxb7 {[%clk 0:00:17.8]} 58... Ke6 {[%clk
0:00:06.7]} 59. Rxa7 {[%clk 0:00:17.6]} 59... e3 {[%clk 0:00:07.2]} 60. Kg3
{[%clk 0:00:17.6]} 1-0

[Event "Late-Titled-Tuesday-Blitz-April-30-2024"]
[Site "Chess.com"]
[Date "2024.04.30"]
[Round "3"]
[White "Cipy77"]
[Black "KVAIDAN"]
[Result "1-0"]
[WhiteElo "2579"]
[BlackElo "2351"]
[TimeControl "180+1"]
[EndTime "14:30:10 PDT"]
[Termination "Cipy77 won on time"]

1. d3 {[%clk 0:03:00.9]} 1... e6 {[%clk 0:02:06.7]} 2. Nf3 {[%clk 0:03:00.9]}
2... b6 {[%clk 0:02:04.7]} 3. g3 {[%clk 0:03:01.3]} 3... Bb7 {[%clk 0:02:05.2]}
4. Bg2 {[%clk 0:03:01.9]} 4... f5 {[%clk 0:02:05.8]} 5. O-O {[%clk 0:03:02.5]}
5... Nf6 {[%clk 0:02:06.3]} 6. Nc3 {[%clk 0:03:03.1]} 6... Be7 {[%clk
0:02:04.2]} 7. Re1 {[%clk 0:03:03.6]} 7... d6 {[%clk 0:02:02.4]} 8. e4 {[%clk
0:03:04]} 8... fxe4 {[%clk 0:02:02.7]} 9. dxe4 {[%clk 0:03:04.9]} 9... e5 {[%clk
0:02:02.3]} 10. Ng5 {[%clk 0:03:03.1]} 10... O-O {[%clk 0:02:00.9]} 11. Ne6
{[%clk 0:03:02.9]} 11... Qd7 {[%clk 0:02:00.8]} 12. Nxf8 {[%clk 0:03:01.3]}
12... Bxf8 {[%clk 0:02:01.7]} 13. Be3 {[%clk 0:02:57.5]} 13... Nc6 {[%clk
0:02:01.7]} 14. Nd5 {[%clk 0:02:57.2]} 14... Be7 {[%clk 0:01:51.7]} 15. Nxf6+
{[%clk 0:02:52.4]} 15... Bxf6 {[%clk 0:01:51.7]} 16. c3 {[%clk 0:02:50.4]} 16...
Nd8 {[%clk 0:01:51.2]} 17. Qd2 {[%clk 0:02:50]} 17... Qe7 {[%clk 0:01:49.9]} 18.
Rad1 {[%clk 0:02:49.6]} 18... Ne6 {[%clk 0:01:49.3]} 19. a4 {[%clk 0:02:29.6]}
19... a5 {[%clk 0:01:46.9]} 20. f3 {[%clk 0:02:25.5]} 20... Qe8 {[%clk
0:01:46.5]} 21. Qc2 {[%clk 0:02:21.5]} 21... Bc6 {[%clk 0:01:44.8]} 22. b3
{[%clk 0:02:19.3]} 22... Nc5 {[%clk 0:01:42.2]} 23. Bf1 {[%clk 0:02:14.8]} 23...
Kh8 {[%clk 0:01:36.6]} 24. Bc4 {[%clk 0:02:13.1]} 24... Rb8 {[%clk 0:01:33.5]}
25. Bd5 {[%clk 0:02:07.9]} 25... Bd7 {[%clk 0:01:33.6]} 26. Bxc5 {[%clk
0:02:04.3]} 26... bxc5 {[%clk 0:01:33.5]} 27. Qd2 {[%clk 0:02:03.4]} 27... Qh5
{[%clk 0:01:25.1]} 28. Qe2 {[%clk 0:01:40.5]} 28... Qh6 {[%clk 0:01:16.1]} 29.
Bc4 {[%clk 0:01:40]} 29... Qg6 {[%clk 0:01:11.5]} 30. Bb5 {[%clk 0:01:35.7]}
30... Be6 {[%clk 0:01:10.3]} 31. Bc4 {[%clk 0:01:29.4]} 31... Bd7 {[%clk
0:01:10]} 32. Rb1 {[%clk 0:01:28.8]} 32... h5 {[%clk 0:01:06.3]} 33. Kh1 {[%clk
0:01:25.6]} 33... h4 {[%clk 0:01:05]} 34. gxh4 {[%clk 0:01:25.7]} 34... Bxh4
{[%clk 0:01:04.3]} 35. Rg1 {[%clk 0:01:26.2]} 35... Qh6 {[%clk 0:01:04.5]} 36.
Qg2 {[%clk 0:01:22.6]} 36... Be8 {[%clk 0:00:51.3]} 37. Qg4 {[%clk 0:01:19]}
37... Bh5 {[%clk 0:00:45]} 38. Qh3 {[%clk 0:00:57.4]} 38... Rf8 {[%clk
0:00:35.3]} 39. Rbf1 {[%clk 0:00:57]} 39... g5 {[%clk 0:00:30.4]} 40. Be6 {[%clk
0:00:48.9]} 40... Rf4 {[%clk 0:00:24.9]} 41. Bg4 {[%clk 0:00:48.4]} 41... Bf7
{[%clk 0:00:24.2]} 42. Qg2 {[%clk 0:00:42.3]} 42... Bxb3 {[%clk 0:00:18.9]} 43.
Qb2 {[%clk 0:00:42.1]} 43... Bc4 {[%clk 0:00:16.7]} 44. Rb1 {[%clk 0:00:38.5]}
44... Rf8 {[%clk 0:00:12.9]} 45. Qd2 {[%clk 0:00:32.4]} 45... Bf7 {[%clk
0:00:11.1]} 46. Rb7 {[%clk 0:00:31.5]} 46... Bh5 {[%clk 0:00:09.2]} 47. Rxc7
{[%clk 0:00:28.5]} 47... Bxg4 {[%clk 0:00:08.9]} 48. fxg4 {[%clk 0:00:29.4]}
48... Bf2 {[%clk 0:00:07.8]} 49. Rf1 {[%clk 0:00:26.6]} 49... Qh4 {[%clk
0:00:03.4]} 50. Qe2 {[%clk 0:00:23.3]} 50... Rf4 {[%clk 0:00:01.5]} 51. Rc8+
{[%clk 0:00:18]} 1-0

[Event "Late-Titled-Tuesday-Blitz-April-30-2024"]
[Site "Chess.com"]
[Date "2024.04.30"]
[Round "3"]
[White "cristianserban1"]
[Black "GaiozNigalidze"]
[Result "0-1"]
[WhiteElo "2496"]
[BlackElo "2735"]
[TimeControl "180+1"]
[EndTime "14:30:12 PDT"]
[Termination "GaiozNigalidze won by resignation"]

1. d4 {[%clk 0:03:00.9]} 1... d6 {[%clk 0:02:56]} 2. e4 {[%clk 0:03:00]} 2... c6
{[%clk 0:02:55.9]} 3. c4 {[%clk 0:02:59.1]} 3... Qc7 {[%clk 0:02:47.6]} 4. Nc3
{[%clk 0:02:57.9]} 4... e5 {[%clk 0:02:46.6]} 5. d5 {[%clk 0:02:58.3]} 5... Nf6
{[%clk 0:02:41.1]} 6. Be2 {[%clk 0:02:54.9]} 6... Be7 {[%clk 0:02:41]} 7. Nf3
{[%clk 0:02:54.7]} 7... Bg4 {[%clk 0:02:36.2]} 8. O-O {[%clk 0:02:54.2]} 8...
O-O {[%clk 0:02:30]} 9. Ne1 {[%clk 0:02:50.5]} 9... Bxe2 {[%clk 0:02:28.2]} 10.
Qxe2 {[%clk 0:02:51.4]} 10... Nbd7 {[%clk 0:02:27.5]} 11. Nd3 {[%clk 0:02:51.6]}
11... a5 {[%clk 0:02:22.7]} 12. Be3 {[%clk 0:02:26]} 12... a4 {[%clk 0:02:10.2]}
13. Rac1 {[%clk 0:02:26.1]} 13... Qa5 {[%clk 0:02:03.9]} 14. Rfd1 {[%clk
0:02:20.8]} 14... Rfc8 {[%clk 0:01:58.7]} 15. Bd2 {[%clk 0:01:57.6]} 15... Qa6
{[%clk 0:01:52.2]} 16. dxc6 {[%clk 0:01:08.9]} 16... bxc6 {[%clk 0:01:49.6]} 17.
b3 {[%clk 0:01:09.4]} 17... axb3 {[%clk 0:01:45.5]} 18. axb3 {[%clk 0:01:10.3]}
18... Rcb8 {[%clk 0:01:33.6]} 19. Rb1 {[%clk 0:01:09.3]} 19... Bd8 {[%clk
0:01:06.9]} 20. Rdc1 {[%clk 0:01:06.5]} 20... Bb6 {[%clk 0:01:00.6]} 21. Nb4
{[%clk 0:00:42.9]} 21... Qb7 {[%clk 0:00:46.7]} 22. Nc2 {[%clk 0:00:40.7]} 22...
Nc5 {[%clk 0:00:38]} 23. b4 {[%clk 0:00:34.9]} 23... Ne6 {[%clk 0:00:34.6]} 24.
c5 {[%clk 0:00:29.8]} 24... dxc5 {[%clk 0:00:31.4]} 25. bxc5 {[%clk 0:00:30.7]}
25... Nxc5 {[%clk 0:00:29.4]} 26. Be3 {[%clk 0:00:28.5]} 26... Qe7 {[%clk
0:00:21.8]} 27. Nb4 {[%clk 0:00:28.6]} 27... Rc8 {[%clk 0:00:18.3]} 28. f3
{[%clk 0:00:22.1]} 28... Ba7 {[%clk 0:00:18.2]} 29. Nd1 {[%clk 0:00:18]} 29...
Nfd7 {[%clk 0:00:16.3]} 30. Nf2 {[%clk 0:00:15.9]} 30... Qe6 {[%clk 0:00:14.9]}
31. Ra1 {[%clk 0:00:09.5]} 31... Nb3 {[%clk 0:00:14.4]} 32. Rxa7 {[%clk
0:00:03.8]} 32... Rxa7 {[%clk 0:00:13.9]} 33. Rb1 {[%clk 0:00:03.1]} 33... Nd4
{[%clk 0:00:11.9]} 34. Bxd4 {[%clk 0:00:03.2]} 34... exd4 {[%clk 0:00:12.8]} 35.
Nfd3 {[%clk 0:00:03.8]} 35... c5 {[%clk 0:00:12.9]} 36. Nd5 {[%clk 0:00:03.8]}
36... c4 {[%clk 0:00:13.2]} 37. N3f4 {[%clk 0:00:04]} 37... Qe5 {[%clk
0:00:12.8]} 38. Rd1 {[%clk 0:00:02.7]} 38... d3 {[%clk 0:00:13]} 39. Qd2 {[%clk
0:00:03.6]} 39... Nc5 {[%clk 0:00:11.5]} 40. Qe3 {[%clk 0:00:03.2]} 40... Ra3
{[%clk 0:00:09.1]} 41. g3 {[%clk 0:00:02.1]} 41... h6 {[%clk 0:00:07.3]} 42. Ng2
{[%clk 0:00:02.5]} 42... Ra1 {[%clk 0:00:07.2]} 43. Rf1 {[%clk 0:00:00.6]} 43...
Rxf1+ {[%clk 0:00:07.2]} 44. Kxf1 {[%clk 0:00:01.5]} 44... Qa1+ {[%clk
0:00:07.4]} 45. Kf2 {[%clk 0:00:01.7]} 45... Nb3 {[%clk 0:00:06.4]} 46. Ne7+
{[%clk 0:00:01.9]} 46... Kf8 {[%clk 0:00:05.6]} 47. Nxc8 {[%clk 0:00:02.8]}
47... Qb2+ {[%clk 0:00:05.1]} 48. Kg1 {[%clk 0:00:02.3]} 48... d2 {[%clk
0:00:05.8]} 49. Qe2 {[%clk 0:00:01.9]} 49... Qc1+ {[%clk 0:00:05.5]} 50. Kf2
{[%clk 0:00:00.9]} 50... d1=Q {[%clk 0:00:06.4]} 51. Qxd1 {[%clk 0:00:00.5]}
51... Qxd1 {[%clk 0:00:06.8]} 52. Ne3 {[%clk 0:00:01.4]} 52... Qd2+ {[%clk
0:00:07.3]} 53. Kg1 {[%clk 0:00:01.4]} 53... Qxe3+ {[%clk 0:00:08.2]} 0-1

[Event "Late-Titled-Tuesday-Blitz-April-30-2024"]
[Site "Chess.com"]
[Date "2024.04.30"]
[Round "3"]
[White "albi1999"]
[Black "Atanejhad"]
[Result "1-0"]
[WhiteElo "2650"]
[BlackElo "2452"]
[TimeControl "180+1"]
[EndTime "14:30:18 PDT"]
[Termination "albi1999 won on time"]

1. d4 {[%clk 0:03:00.9]} 1... d5 {[%clk 0:02:59.1]} 2. c4 {[%clk 0:03:00.2]}
2... e6 {[%clk 0:02:59.2]} 3. Nc3 {[%clk 0:03:00]} 3... Nf6 {[%clk 0:02:59]} 4.
cxd5 {[%clk 0:02:59.8]} 4... exd5 {[%clk 0:02:59.9]} 5. Bg5 {[%clk 0:02:59.7]}
5... c6 {[%clk 0:02:49.3]} 6. e3 {[%clk 0:02:59.9]} 6... Be7 {[%clk 0:02:49.2]}
7. Bd3 {[%clk 0:02:58.2]} 7... h6 {[%clk 0:02:46.2]} 8. Bh4 {[%clk 0:02:58]}
8... Nbd7 {[%clk 0:02:42.5]} 9. Qc2 {[%clk 0:02:54]} 9... O-O {[%clk 0:02:42]}
10. Nge2 {[%clk 0:02:53.3]} 10... Re8 {[%clk 0:02:41.2]} 11. O-O {[%clk
0:02:53.1]} 11... Ne4 {[%clk 0:02:40.6]} 12. Bxe7 {[%clk 0:02:46.5]} 12... Qxe7
{[%clk 0:02:41.5]} 13. Bxe4 {[%clk 0:02:42.9]} 13... dxe4 {[%clk 0:02:42.4]} 14.
a4 {[%clk 0:02:16]} 14... Nf6 {[%clk 0:02:32.6]} 15. a5 {[%clk 0:02:15.7]} 15...
Bf5 {[%clk 0:02:06.3]} 16. Qb3 {[%clk 0:02:06.5]} 16... Rad8 {[%clk 0:01:59.8]}
17. Qa3 {[%clk 0:02:05.7]} 17... Qc7 {[%clk 0:01:53.9]} 18. Qc5 {[%clk
0:01:59.9]} 18... Ng4 {[%clk 0:01:39.1]} 19. Ng3 {[%clk 0:01:59.5]} 19... Bh7
{[%clk 0:01:35.8]} 20. Qxa7 {[%clk 0:01:44.2]} 20... f5 {[%clk 0:01:35.2]} 21.
Qb6 {[%clk 0:01:39.8]} 21... Qe7 {[%clk 0:01:34.6]} 22. h3 {[%clk 0:01:36.3]}
22... Nf6 {[%clk 0:01:33.7]} 23. a6 {[%clk 0:01:34.6]} 23... bxa6 {[%clk
0:01:33.1]} 24. Qxc6 {[%clk 0:01:30.4]} 24... Rb8 {[%clk 0:01:30.4]} 25. Rxa6
{[%clk 0:01:22.3]} 25... Rxb2 {[%clk 0:01:27.7]} 26. Rfa1 {[%clk 0:01:18.5]}
26... f4 {[%clk 0:01:24.1]} 27. Nd5 {[%clk 0:01:02.7]} 27... Nxd5 {[%clk
0:01:10.3]} 28. Qxd5+ {[%clk 0:01:03.6]} 28... Kh8 {[%clk 0:01:09.3]} 29. exf4
{[%clk 0:00:56.3]} 29... e3 {[%clk 0:01:09.2]} 30. fxe3 {[%clk 0:00:48.6]} 30...
Qxe3+ {[%clk 0:01:07.9]} 31. Kh2 {[%clk 0:00:48.9]} 31... Qxf4 {[%clk
0:00:21.3]} 32. Ra8 {[%clk 0:00:42.2]} 32... Rbb8 {[%clk 0:00:18.1]} 33. Rxb8
{[%clk 0:00:39.8]} 33... Rxb8 {[%clk 0:00:17.3]} 34. Ra8 {[%clk 0:00:23]} 34...
Bg8 {[%clk 0:00:16.7]} 35. Rxb8 {[%clk 0:00:20.4]} 35... Qxb8 {[%clk 0:00:17.6]}
36. Qc5 {[%clk 0:00:17.9]} 36... Qd8 {[%clk 0:00:14.6]} 37. Qe5 {[%clk 0:00:17]}
37... Qd5 {[%clk 0:00:11.1]} 38. Qxd5 {[%clk 0:00:15.7]} 38... Bxd5 {[%clk
0:00:12]} 39. Ne2 {[%clk 0:00:16.4]} 39... Kg8 {[%clk 0:00:08.7]} 40. Nc3 {[%clk
0:00:15.9]} 40... Bb7 {[%clk 0:00:08.3]} 41. Kg3 {[%clk 0:00:12.3]} 41... Kf7
{[%clk 0:00:08.6]} 42. Kf2 {[%clk 0:00:12.7]} 42... Ke6 {[%clk 0:00:07.6]} 43.
g3 {[%clk 0:00:13.2]} 43... g5 {[%clk 0:00:07.5]} 44. Ke3 {[%clk 0:00:12.2]}
44... Kf5 {[%clk 0:00:05.9]} 45. Ne2 {[%clk 0:00:04.1]} 45... Bg2 {[%clk
0:00:05.2]} 46. Ng1 {[%clk 0:00:04.5]} 46... h5 {[%clk 0:00:04.6]} 47. Kf2
{[%clk 0:00:03.3]} 47... Bd5 {[%clk 0:00:04.5]} 48. Ke3 {[%clk 0:00:03.5]} 48...
h4 {[%clk 0:00:04.3]} 49. gxh4 {[%clk 0:00:03.4]} 49... gxh4 {[%clk 0:00:05.2]}
50. Nf3 {[%clk 0:00:04]} 1-0

[Event "Late-Titled-Tuesday-Blitz-April-30-2024"]
[Site "Chess.com"]
[Date "2024.04.30"]
[Round "3"]
[White "Slovineanu"]
[Black "HipsterChess22"]
[Result "1/2-1/2"]
[WhiteElo "2465"]
[BlackElo "2192"]
[TimeControl "180+1"]
[EndTime "14:30:22 PDT"]
[Termination "Game drawn by repetition"]

1. d4 {[%clk 0:03:00.9]} 1... d5 {[%clk 0:02:58.9]} 2. Nf3 {[%clk 0:03:00.9]}
2... e6 {[%clk 0:02:58.5]} 3. c4 {[%clk 0:03:01.1]} 3... c6 {[%clk 0:02:58.4]}
4. e3 {[%clk 0:02:58.1]} 4... f5 {[%clk 0:02:54.7]} 5. Bd3 {[%clk 0:02:56.5]}
5... Nf6 {[%clk 0:02:45.6]} 6. O-O {[%clk 0:02:56.8]} 6... Bd6 {[%clk
0:02:44.9]} 7. b3 {[%clk 0:02:56.7]} 7... Qe7 {[%clk 0:02:44.8]} 8. Bb2 {[%clk
0:02:55.9]} 8... a5 {[%clk 0:02:42.7]} 9. Nc3 {[%clk 0:02:54.6]} 9... O-O {[%clk
0:02:40.4]} 10. Ne5 {[%clk 0:02:54.1]} 10... Na6 {[%clk 0:02:22.6]} 11. a3
{[%clk 0:02:50.4]} 11... Nc5 {[%clk 0:02:08.3]} 12. dxc5 {[%clk 0:02:20.9]}
12... Bxe5 {[%clk 0:02:07.3]} 13. f4 {[%clk 0:01:49.7]} 13... Bxc3 {[%clk
0:01:52.1]} 14. Bxc3 {[%clk 0:01:49.9]} 14... Qxc5 {[%clk 0:01:52.2]} 15. Bd4
{[%clk 0:01:50.1]} 15... Qe7 {[%clk 0:01:45.1]} 16. Qd2 {[%clk 0:01:41.3]} 16...
Ne4 {[%clk 0:01:40.4]} 17. Bxe4 {[%clk 0:01:38.5]} 17... fxe4 {[%clk 0:01:41.3]}
18. Qc3 {[%clk 0:01:31.5]} 18... Qf7 {[%clk 0:01:24.8]} 19. a4 {[%clk
0:01:19.8]} 19... Bd7 {[%clk 0:01:21.8]} 20. Bb6 {[%clk 0:01:13.8]} 20... Qf6
{[%clk 0:01:14.4]} 21. Bxa5 {[%clk 0:01:12.8]} 21... Qxc3 {[%clk 0:01:12.5]} 22.
Bxc3 {[%clk 0:01:12.6]} 22... dxc4 {[%clk 0:01:04.8]} 23. bxc4 {[%clk
0:01:11.2]} 23... c5 {[%clk 0:01:04.6]} 24. a5 {[%clk 0:01:09.2]} 24... Bc6
{[%clk 0:01:02.5]} 25. Rfd1 {[%clk 0:01:08.3]} 25... Rfd8 {[%clk 0:01:01]} 26.
Kf2 {[%clk 0:00:57.7]} 26... Kf7 {[%clk 0:01:00.5]} 27. Ke2 {[%clk 0:00:50.5]}
27... g6 {[%clk 0:01:00.2]} 28. g4 {[%clk 0:00:47.1]} 28... Ke7 {[%clk
0:00:56.5]} 29. h4 {[%clk 0:00:44.3]} 29... Rxd1 {[%clk 0:00:55.9]} 30. Rxd1
{[%clk 0:00:43.7]} 30... Ba4 {[%clk 0:00:47.4]} 31. Rd2 {[%clk 0:00:32.8]} 31...
Bb3 {[%clk 0:00:45.2]} 32. g5 {[%clk 0:00:30]} 32... Bxc4+ {[%clk 0:00:44.8]}
33. Kf2 {[%clk 0:00:29.6]} 33... Bd3 {[%clk 0:00:43.9]} 34. Rb2 {[%clk
0:00:27.8]} 34... Ba6 {[%clk 0:00:40.6]} 35. Bf6+ {[%clk 0:00:23.8]} 35... Kd7
{[%clk 0:00:37.9]} 36. Rb6 {[%clk 0:00:11.4]} 36... Rc8 {[%clk 0:00:33]} 37. Ke1
{[%clk 0:00:10.3]} 37... Rc6 {[%clk 0:00:28.2]} 38. Rb2 {[%clk 0:00:08.5]} 38...
Kc8 {[%clk 0:00:27.3]} 39. Be5 {[%clk 0:00:06.7]} 39... Bd3 {[%clk 0:00:26.2]}
40. Kd2 {[%clk 0:00:06.1]} 40... Ra6 {[%clk 0:00:24.4]} 41. Bc3 {[%clk
0:00:06.1]} 41... Rc6 {[%clk 0:00:20.5]} 42. Kc1 {[%clk 0:00:05.8]} 42... Rd6
{[%clk 0:00:19.3]} 43. Rh2 {[%clk 0:00:05.8]} 43... b6 {[%clk 0:00:12.3]} 44. h5
{[%clk 0:00:03.3]} 44... bxa5 {[%clk 0:00:11]} 45. Bxa5 {[%clk 0:00:03.6]} 45...
Ra6 {[%clk 0:00:10.6]} 46. Bc3 {[%clk 0:00:03.7]} 46... Rb6 {[%clk 0:00:08.8]}
47. hxg6 {[%clk 0:00:01.6]} 47... hxg6 {[%clk 0:00:08.6]} 48. Rh8+ {[%clk
0:00:01.8]} 48... Kd7 {[%clk 0:00:07.9]} 49. Rh7+ {[%clk 0:00:01.5]} 49... Kc6
{[%clk 0:00:07.3]} 50. Rg7 {[%clk 0:00:01.9]} 50... Rb1+ {[%clk 0:00:06.9]} 51.
Kd2 {[%clk 0:00:02.4]} 51... Rf1 {[%clk 0:00:03.1]} 52. Rxg6 {[%clk 0:00:02.3]}
52... Rf2+ {[%clk 0:00:03.2]} 53. Kd1 {[%clk 0:00:02.6]} 53... Rf1+ {[%clk
0:00:03.3]} 54. Kd2 {[%clk 0:00:02.9]} 54... Rf2+ {[%clk 0:00:03.6]} 55. Ke1
{[%clk 0:00:03.3]} 55... Rf1+ {[%clk 0:00:03.7]} 56. Kd2 {[%clk 0:00:03.5]}
1/2-1/2

[Event "Late-Titled-Tuesday-Blitz-April-30-2024"]
[Site "Chess.com"]
[Date "2024.04.30"]
[Round "3"]
[White "TheMagician"]
[Black "PapaieDudu"]
[Result "0-1"]
[WhiteElo "2116"]
[BlackElo "2394"]
[TimeControl "180+1"]
[EndTime "14:30:22 PDT"]
[Termination "PapaieDudu won on time"]

1. c4 {[%clk 0:03:00.9]} 1... e6 {[%clk 0:02:57.5]} 2. d4 {[%clk 0:03:00.1]}
2... d5 {[%clk 0:02:57.9]} 3. e3 {[%clk 0:02:59.9]} 3... Nf6 {[%clk 0:02:58.5]}
4. Nf3 {[%clk 0:02:52.8]} 4... a6 {[%clk 0:02:57.7]} 5. cxd5 {[%clk 0:02:38.9]}
5... Nxd5 {[%clk 0:02:57.3]} 6. Nc3 {[%clk 0:02:38.4]} 6... c5 {[%clk
0:02:54.6]} 7. e4 {[%clk 0:02:32.2]} 7... Nxc3 {[%clk 0:02:53.3]} 8. bxc3 {[%clk
0:02:32.4]} 8... cxd4 {[%clk 0:02:53.6]} 9. cxd4 {[%clk 0:02:32.8]} 9... Bb4+
{[%clk 0:02:53.1]} 10. Bd2 {[%clk 0:02:33.2]} 10... Bxd2+ {[%clk 0:02:51.3]} 11.
Qxd2 {[%clk 0:02:34.1]} 11... O-O {[%clk 0:02:51.4]} 12. a4 {[%clk 0:02:30.9]}
12... b6 {[%clk 0:02:38.6]} 13. Bd3 {[%clk 0:02:22.9]} 13... Bb7 {[%clk
0:02:36.6]} 14. O-O {[%clk 0:02:19.7]} 14... Nc6 {[%clk 0:02:36.4]} 15. Qb2
{[%clk 0:02:18.6]} 15... a5 {[%clk 0:02:29.3]} 16. Bb5 {[%clk 0:01:36]} 16...
Nb4 {[%clk 0:02:26.8]} 17. Rfe1 {[%clk 0:01:30.2]} 17... Rc8 {[%clk 0:02:08.9]}
18. Rac1 {[%clk 0:01:21.5]} 18... Qf6 {[%clk 0:01:46.2]} 19. Rxc8 {[%clk
0:01:10.6]} 19... Rxc8 {[%clk 0:01:44.9]} 20. Rc1 {[%clk 0:01:04.8]} 20... Rd8
{[%clk 0:01:28]} 21. Qe2 {[%clk 0:00:36.9]} 21... Qf4 {[%clk 0:01:18.4]} 22. Re1
{[%clk 0:00:32.6]} 22... Rc8 {[%clk 0:01:11.4]} 23. h3 {[%clk 0:00:24.7]} 23...
Nc2 {[%clk 0:00:41.7]} 24. g3 {[%clk 0:00:07.2]} 24... Qh6 {[%clk 0:00:24]} 25.
Rd1 {[%clk 0:00:06.8]} 25... Qxh3 {[%clk 0:00:16.5]} 26. Rc1 {[%clk 0:00:06.2]}
26... Qh6 {[%clk 0:00:11.5]} 27. Rxc2 {[%clk 0:00:04]} 27... Rf8 {[%clk
0:00:05.6]} 28. Rc7 {[%clk 0:00:03.2]} 28... Ba8 {[%clk 0:00:06]} 29. Ne5 {[%clk
0:00:03.4]} 29... Qf6 {[%clk 0:00:05.7]} 30. Nd7 {[%clk 0:00:02.2]} 30... Qe7
{[%clk 0:00:05.8]} 31. Nxf8 {[%clk 0:00:02.8]} 31... Qxc7 {[%clk 0:00:06.5]} 32.
Nxh7 {[%clk 0:00:02.1]} 32... Kxh7 {[%clk 0:00:06.9]} 33. e5 {[%clk 0:00:02.5]}
33... Qb7 {[%clk 0:00:06.8]} 34. Bd3+ {[%clk 0:00:02.9]} 34... Kg8 {[%clk
0:00:06.9]} 35. f3 {[%clk 0:00:02.4]} 35... Qxf3 {[%clk 0:00:07.1]} 36. Qxf3
{[%clk 0:00:02.8]} 36... Bxf3 {[%clk 0:00:08]} 37. Bb5 {[%clk 0:00:03.1]} 37...
Bd1 {[%clk 0:00:07.8]} 38. Kf2 {[%clk 0:00:04]} 38... f6 {[%clk 0:00:07.4]} 39.
Ke3 {[%clk 0:00:04.9]} 39... Kf7 {[%clk 0:00:07.4]} 40. d5 {[%clk 0:00:04.1]}
40... exd5 {[%clk 0:00:07.3]} 41. Kd4 {[%clk 0:00:04.6]} 41... Ke6 {[%clk
0:00:06.9]} 42. exf6 {[%clk 0:00:04.3]} 42... gxf6 {[%clk 0:00:07.5]} 43. Bc6
{[%clk 0:00:04.3]} 43... Bf3 {[%clk 0:00:08]} 44. g4 {[%clk 0:00:04]} 44... Kd6
{[%clk 0:00:08.3]} 45. Bb7 {[%clk 0:00:03.9]} 45... Bd1 {[%clk 0:00:06]} 46.
Bxd5 {[%clk 0:00:03]} 46... Bxg4 {[%clk 0:00:06.4]} 47. Bc4 {[%clk 0:00:02.1]}
47... Bd7 {[%clk 0:00:06.3]} 48. Bb3 {[%clk 0:00:02.3]} 48... Bc6 {[%clk
0:00:05.9]} 49. Bd1 {[%clk 0:00:02.2]} 49... f5 {[%clk 0:00:04.2]} 50. Bc2
{[%clk 0:00:00.7]} 50... Be4 {[%clk 0:00:02.9]} 51. Bd1 {[%clk 0:00:00.7]} 51...
Ke6 {[%clk 0:00:01.8]} 0-1